fUSD/lending_fUSD_20240903
["ID","MTS","AMOUNT","RATE_DAILY","PERIOD"]
[337043338,1725377432671,-842.51,0.00014337,2]
[337043339,1725377432680,-15666.43,0.00014337,2]
[337043340,1725377432690,-5893.4,0.00014337,2]
[337043341,1725377432700,-1894.77,0.00014337,2]
[337043342,1725377432710,-1894.77,0.00014337,2]
[337043343,1725377432720,-1894.77,0.00014337,2]
[337043344,1725377432729,-6349.51,0.00014337,2]
[337043345,1725377432739,-8859.78,0.00014337,2]
[337043346,1725377432748,-500.0,0.00014337,2]
[337043347,1725377432758,-500.0,0.00014337,2]
[337043348,1725377432768,-500.0,0.00014337,2]
[337043349,1725377432778,-500.0,0.00014337,2]
[337043350,1725377432788,-500.0,0.00014337,2]
[337043351,1725377432797,-500.0,0.00014337,2]
[337043352,1725377432807,-500.0,0.00014337,2]
[337043353,1725377432816,-5304.71,0.00014337,2]
[337043354,1725377432826,-15768.33,0.00014337,2]
[337043355,1725377432835,-877.32,0.00014337,2]
[337043356,1725377432844,-877.32,0.00014337,2]
[337043357,1725377432853,-877.32,0.00014337,2]
[337043358,1725377432863,-500.0,0.00014338,2]
[337043359,1725377432873,-500.0,0.00014338,2]
[337043360,1725377432883,-365.1153703,0.00014338,2]
[337043361,1725377432896,-500.0,0.00014338,2]
[337043362,1725377432905,-500.0,0.00014338,2]
[337043363,1725377432915,-500.0,0.00014338,2]
[337043364,1725377432924,-500.0,0.00014338,2]
[337043365,1725377432934,-4771.3,0.00014338,2]
[337043366,1725377432943,-500.0,0.00014338,2]
[337043367,1725377432953,-810.77,0.00014338,2]
[337043368,1725377432962,-5063.13,0.00014338,2]
[337043369,1725377432973,-1173.27,0.00014338,2]
[337043370,1725377432982,-500.0,0.00014338,2]
[337043371,1725377432992,-500.0,0.00014338,2]
[337043372,1725377433001,-1681.12,0.00014338,2]
[337043373,1725377433011,-500.0,0.00014338,2]
[337043374,1725377433020,-4959.98,0.00014338,2]
[337043375,1725377433029,-500.0,0.00014338,2]
[337043376,1725377433039,-500.0,0.00014338,2]
[337043377,1725377433048,-500.0,0.00014338,2]
[337043378,1725377433057,-2962.81,0.00014338,2]
[337043379,1725377433067,-500.0,0.00014338,2]
[337043380,1725377433076,-500.0,0.00014338,2]
[337043381,1725377433085,-500.0,0.00014338,2]
[337043382,1725377433101,-500.0,0.00014338,2]
[337043383,1725377433115,-500.0,0.00014338,2]
[337043384,1725377433125,-500.0,0.00014338,2]
[337043385,1725377433135,-500.0,0.00014338,2]
[337043386,1725377433145,-500.0,0.00014338,2]
[337043387,1725377433155,-500.0,0.00014338,2]
[337043388,1725377433164,-500.0,0.00014338,2]
[337043389,1725377433174,-500.0,0.00014338,2]
[337043390,1725377433184,-345.9101869,0.00014338,2]
[337043391,1725377433194,-500.0,0.00014338,2]
[337043392,1725377433203,-525.08770443,0.00014338,2]
[337043393,1725377433213,-500.0,0.00014338,2]
[337043394,1725377433223,-500.0,0.00014338,2]
[337043395,1725377433233,-190.14735193,0.00014338,2]
[337043396,1725377433242,-500.0,0.00014338,2]
[337043397,1725377433252,-498.62502723,0.00014338,2]
[337043398,1725377433262,-500.0,0.00014338,2]
[337043399,1725377433272,-500.0,0.00014338,2]
[337043400,1725377433281,-626.67,0.00014338,2]
[337043401,1725377433291,-150.0,0.00014338,2]
[337043402,1725377433301,-2956.84,0.00014338,2]
[337043403,1725377433310,-500.0,0.00014338,2]
[337043404,1725377433321,-500.0,0.00014338,2]
[337043405,1725377433330,-500.0,0.00014338,2]
[337043406,1725377433341,-4312.37,0.00014338,2]
[337043407,1725377433350,-500.0,0.00014338,2]
[337043408,1725377433360,-500.0,0.00014338,2]
[337043409,1725377433370,-500.0,0.00014338,2]
[337043410,1725377433380,-500.0,0.00014338,2]
[337043411,1725377433390,-500.0,0.00014338,2]
[337043412,1725377433400,-500.0,0.00014338,2]
[337043413,1725377433409,-2823.26,0.00014338,2]
[337043414,1725377433419,-500.0,0.00014338,2]
[337043415,1725377433429,-500.0,0.00014338,2]
[337043416,1725377433440,-414.14997122,0.00014338,2]
[337043417,1725377433449,-500.0,0.00014338,2]
[337043418,1725377433459,-2941.27,0.00014338,2]
[337043419,1725377433468,-500.0,0.00014338,2]
[337043420,1725377433478,-5291.28,0.00014338,2]
[337043421,1725377433488,-500.0,0.00014338,2]
[337043422,1725377433497,-500.0,0.00014338,2]
[337043423,1725377433507,-500.0,0.00014338,2]
[337043424,1725377433518,-500.0,0.00014338,2]
[337043425,1725377433531,-500.0,0.00014338,2]
[337043426,1725377433541,-493.45456236,0.00014338,2]
[337043427,1725377433550,-500.0,0.00014338,2]
[337043428,1725377433560,-921.76,0.00014338,2]
[337043429,1725377433570,-3556.69,0.00014338,2]
[337043430,1725377433580,-500.0,0.00014338,2]
[337043431,1725377433591,-727.05,0.00014338,2]
[337043432,1725377433770,-334.93317189,0.00014338,2]
[337043433,1725377433780,-503.07265322,0.00014338,2]
[337043434,1725377433789,-500.0,0.00014338,2]
[337043435,1725377433799,-594.04182639,0.00014338,2]
[337043436,1725377433808,-500.0,0.00014338,2]
[337043437,1725377433817,-500.0,0.00014338,2]
[337043438,1725377433827,-500.0,0.00014338,2]
[337043439,1725377433836,-4701.85,0.00014338,2]
[337043440,1725377433845,-500.0,0.00014338,2]
[337043441,1725377433855,-500.0,0.00014338,2]
[337043442,1725377433865,-500.0,0.00014338,2]
[337043443,1725377433875,-2185.35,0.00014338,2]
[337043444,1725377433885,-2185.35,0.00014338,2]
[337043445,1725377433895,-2185.35,0.00014338,2]
[337043446,1725377433905,-1889.0,0.00014338,2]
[337043447,1725377433915,-1889.0,0.00014338,2]
[337043448,1725377433924,-1889.0,0.00014338,2]
[337043449,1725377433933,-500.0,0.00014338,2]
[337043450,1725377433943,-5712.89,0.00014338,2]
[337043451,1725377433952,-1000.45,0.00014338,2]
[337043452,1725377433961,-1000.45,0.00014338,2]
[337043453,1725377433971,-882.94,0.00014338,2]
[337043454,1725377433981,-882.94,0.00014338,2]
[337043455,1725377433991,-882.94,0.00014338,2]
[337043456,1725377434001,-2313.19,0.00014338,2]
[337043457,1725377434010,-2476.86,0.00014338,2]
[337043458,1725377434020,-2476.86,0.00014338,2]
[337043459,1725377434029,-2476.86,0.00014338,2]
[337043460,1725377434038,-500.0,0.00014338,2]
[337043461,1725377434048,-550.26843595,0.00014338,2]
[337043462,1725377434057,-12504.9,0.00014338,2]
[337043463,1725377434067,-12504.9,0.00014338,2]
[337043464,1725377434076,-500.0,0.00014338,2]
[337043465,1725377434086,-500.0,0.00014338,2]
[337043466,1725377434095,-500.0,0.00014338,2]
[337043467,1725377434104,-500.0,0.00014338,2]
[337043468,1725377434114,-500.0,0.00014338,2]
[337043469,1725377434123,-500.0,0.00014338,2]
[337043470,1725377434133,-500.0,0.00014338,2]
[337043471,1725377434143,-104643.8,0.00014338,2]
[337043472,1725377434153,-104643.8,0.00014338,2]
[337043473,1725377434164,-104643.8,0.00014338,2]
[337043474,1725377434174,-500.0,0.00014338,2]
[337043475,1725377434184,-500.0,0.00014338,2]
[337043476,1725377434194,-7454.96,0.00014338,2]
[337043477,1725377434204,-7454.96,0.00014338,2]
[337043478,1725377434214,-7454.96,0.00014338,2]
[337043479,1725377434224,-500.0,0.00014338,2]
[337043480,1725377434233,-500.0,0.00014338,2]
[337043481,1725377434243,-500.0,0.00014338,2]
[337043482,1725377434252,-5240.95,0.00014338,2]
[337043483,1725377434262,-5240.95,0.00014338,2]
[337043484,1725377434272,-5240.95,0.00014338,2]
[337043485,1725377434282,-2310.49,0.00014338,2]
[337043486,1725377434292,-1929.02,0.00014338,2]
[337043487,1725377434302,-2934.128541,0.00014338,2]
[337043488,1725377434312,-1929.02,0.00014338,2]
[337043489,1725377434323,-2934.128541,0.00014338,2]
[337043490,1725377434333,-2934.128541,0.00014338,2]
[337043491,1725377434343,-1244.889249,0.00014338,2]
[337043492,1725377434354,-1193.018864,0.00014338,2]
[337043493,1725377434364,-980.35,0.00014338,2]
[337043494,1725377434374,-1244.889249,0.00014338,2]
[337043495,1725377434384,-980.35,0.00014338,2]
[337043496,1725377434395,-4358.91,0.00014338,2]
[337043497,1725377434405,-1244.889249,0.00014338,2]
[337043498,1725377434415,-154.362379,0.00014338,2]
[337043499,1725377434426,-1193.018864,0.00014338,2]
[337043500,1725377434436,-154.362379,0.00014338,2]
[337043501,1725377434447,-1193.018864,0.00014338,2]
[337043502,1725377434457,-937.989469,0.00014338,2]
[337043503,1725377434467,-1244.889249,0.00014338,2]
[337043504,1725377434477,-937.989469,0.00014338,2]
[337043505,1725377434487,-937.989469,0.00014338,2]
[337043506,1725377434496,-937.989469,0.00014338,2]
[337043507,1725377434506,-667.290895,0.00014338,2]
[337043508,1725377434516,-937.989469,0.00014338,2]
[337043509,1725377434532,-1039.568974,0.00014338,2]
[337043510,1725377434542,-377.343546,0.00014338,2]
[337043511,1725377434553,-667.290895,0.00014338,2]
[337043512,1725377434566,-1039.568974,0.00014338,2]
[337043513,1725377434576,-3634.39,0.00014338,2]
[337043514,1725377434586,-3634.39,0.00014338,2]
[337043515,1725377434596,-667.290895,0.00014338,2]
[337043516,1725377434608,-3634.39,0.00014338,2]
[337043517,1725377434619,-325.47316,0.00014338,2]
[337043518,1725377434628,-937.989469,0.00014338,2]
[337043519,1725377434639,-152.714659,0.00014338,2]
[337043520,1725377434650,-377.343546,0.00014338,2]
[337043521,1725377434660,-5972.92,0.00014338,2]
[337043522,1725377434670,-5972.92,0.00014338,2]
[337043523,1725377434680,-4348.84,0.00014338,2]
[337043524,1725377434690,-4348.84,0.00014338,2]
[337043525,1725377434700,-4348.84,0.00014338,2]
[337043526,1725377434709,-4672.45,0.00014338,2]
[337043527,1725377434719,-267.551276,0.00014338,2]
[337043528,1725377434729,-4672.45,0.00014338,2]
[337043529,1725377434738,-4672.45,0.00014338,2]
[337043530,1725377434748,-3422.63,0.00014338,2]
[337043531,1725377434758,-3422.63,0.00014338,2]
[337043532,1725377434768,-3422.63,0.00014338,2]
[337043533,1725377434778,-267.551276,0.00014338,2]
[337043534,1725377434789,-7778.65,0.00014338,2]
[337043535,1725377434798,-7778.65,0.00014338,2]
[337043536,1725377434809,-500.0,0.00014338,2]
[337043537,1725377434818,-997.21,0.00014338,2]
[337043538,1725377434828,-997.21,0.00014338,2]
[337043539,1725377434838,-997.21,0.00014338,2]
[337043540,1725377434848,-560.19,0.00014338,2]
[337043541,1725377434858,-560.19,0.00014338,2]
[337043542,1725377434869,-560.19,0.00014338,2]
[337043543,1725377434879,-1196.9,0.00014338,2]
[337043544,1725377434894,-1842.03,0.00014338,2]
[337043545,1725377434907,-1842.03,0.00014338,2]
[337043546,1725377434918,-1842.03,0.00014338,2]
[337043547,1725377434931,-1383.26,0.00014338,2]
[337043548,1725377434943,-1383.26,0.00014338,2]
[337043549,1725377434954,-1383.26,0.00014338,2]
[337043550,1725377434964,-5587.11,0.00014338,2]
[337043551,1725377434973,-5587.11,0.00014338,2]
[337043552,1725377434984,-5587.11,0.00014338,2]
[337043553,1725377434994,-2141.92,0.00014338,2]
[337043554,1725377435004,-2141.92,0.00014338,2]
[337043555,1725377435013,-1869.64,0.00014338,2]
[337043556,1725377435024,-1869.64,0.00014338,2]
[337043557,1725377435034,-500.0,0.00014338,2]
[337043558,1725377435044,-1869.64,0.00014338,2]
[337043559,1725377435056,-500.0,0.00014338,2]
[337043560,1725377435065,-618.75400582,0.00014338,2]
[337043561,1725377435075,-1986.44,0.00014338,2]
[337043562,1725377435084,-1986.44,0.00014338,2]
[337043563,1725377435093,-1986.44,0.00014338,2]
[337043564,1725377435103,-3391.26,0.00014338,2]
[337043565,1725377435113,-3391.26,0.00014338,2]
[337043566,1725377435122,-3391.26,0.00014338,2]
[337043567,1725377435131,-3248.97,0.00014338,2]
[337043568,1725377435144,-3248.97,0.00014338,2]
[337043569,1725377435153,-500.0,0.00014338,2]
[337043570,1725377435163,-500.0,0.00014338,2]
[337043571,1725377435172,-500.0,0.00014338,2]
[337043572,1725377435182,-3775.66,0.00014338,2]
[337043573,1725377435191,-3775.66,0.00014338,2]
[337043574,1725377435201,-3775.66,0.00014338,2]
[337043575,1725377435210,-8552.92,0.00014338,2]
[337043576,1725377435219,-8552.92,0.00014338,2]
[337043577,1725377435229,-8552.92,0.00014338,2]
[337043578,1725377435239,-12579.19,0.00014338,2]
[337043579,1725377435248,-12579.19,0.00014338,2]
[337043580,1725377435258,-10368.67,0.00014338,2]
[337043581,1725377435268,-10368.67,0.00014338,2]
[337043582,1725377435277,-10368.67,0.00014338,2]
[337043583,1725377435287,-1000.0,0.00014338,2]
[337043584,1725377435296,-151.0,0.00014338,2]
[337043585,1725377435306,-4065.17,0.00014338,2]
[337043586,1725377435316,-4065.17,0.00014338,2]
[337043587,1725377435325,-151.0,0.00014338,2]
[337043588,1725377435334,-4065.17,0.00014338,2]
[337043589,1725377435343,-500.0,0.00014338,2]
[337043590,1725377435352,-4887.6,0.00014338,2]
[337043591,1725377435362,-4887.6,0.00014338,2]
[337043592,1725377435371,-4887.6,0.00014338,2]
[337043593,1725377435381,-3684.31,0.00014338,2]
[337043594,1725377435391,-3684.31,0.00014338,2]
[337043595,1725377435406,-3684.31,0.00014338,2]
[337043596,1725377435424,-6197.64,0.00014338,2]
[337043597,1725377435433,-6197.64,0.00014338,2]
[337043598,1725377435443,-151.0,0.00014338,2]
[337043599,1725377435452,-2039.87,0.00014338,2]
[337043600,1725377435462,-2039.87,0.00014338,2]
[337043601,1725377435471,-2039.87,0.00014338,2]
[337043602,1725377435480,-4242.84,0.00014338,2]
[337043603,1725377435490,-4242.84,0.00014338,2]
[337043604,1725377435499,-4242.84,0.00014338,2]
[337043605,1725377435648,-500.0,0.00014338,2]
[337043606,1725377435658,-12246.74,0.00014338,2]
[337043607,1725377435668,-12246.74,0.00014338,2]
[337043608,1725377435679,-1745.24,0.00014338,2]
[337043609,1725377435689,-842.51,0.00014338,2]
[337043610,1725377435700,-1745.24,0.00014338,2]
[337043611,1725377435710,-842.51,0.00014338,2]
[337043612,1725377435720,-1745.24,0.00014338,2]
[337043613,1725377435733,-842.51,0.00014338,2]
[337043614,1725377435743,-15666.43,0.00014338,2]
[337043615,1725377435753,-15666.43,0.00014338,2]
[337043616,1725377435762,-15666.43,0.00014338,2]
[337043617,1725377435772,-5893.4,0.00014338,2]
[337043618,1725377435782,-5893.4,0.00014338,2]
[337043619,1725377435791,-5893.4,0.00014338,2]
[337043620,1725377435802,-2396.88,0.00014338,2]
[337043621,1725377435812,-183.879101,0.00014338,2]
[337043622,1725377435822,-34066.63,0.00014338,2]
[337043623,1725377435831,-34066.63,0.00014338,2]
[337043624,1725377435841,-1894.77,0.00014338,2]
[337043625,1725377435851,-1894.77,0.00014338,2]
[337043626,1725377435860,-1894.77,0.00014338,2]
[337043627,1725377435871,-6349.51,0.00014338,2]
[337043628,1725377435881,-6349.51,0.00014338,2]
[337043629,1725377435892,-6349.51,0.00014338,2]
[337043630,1725377435902,-8859.78,0.00014338,2]
[337043631,1725377435912,-8859.78,0.00014338,2]
[337043632,1725377435922,-8859.78,0.00014338,2]
[337043633,1725377435931,-500.0,0.00014338,2]
[337043634,1725377435940,-500.0,0.00014338,2]
[337043635,1725377435950,-500.0,0.00014338,2]
[337043636,1725377435960,-500.0,0.00014338,2]
[337043637,1725377435969,-282.71498589,0.00014338,2]
[337043638,1725377435979,-500.0,0.00014338,2]
[337043639,1725377435988,-3903.31,0.00014338,2]
[337043640,1725377435997,-3903.31,0.00014338,2]
[337043641,1725377436006,-3903.31,0.00014338,2]
[337043642,1725377436016,-5304.71,0.00014338,2]
[337043643,1725377436025,-5304.71,0.00014338,2]
[337043644,1725377436035,-5304.71,0.00014338,2]
[337043645,1725377436044,-15768.33,0.00014338,2]
[337043646,1725377436053,-15768.33,0.00014338,2]
[337043647,1725377436063,-15768.33,0.00014338,2]
[337043648,1725377436072,-36127.3,0.00014338,2]
[337043649,1725377436081,-500.0,0.00014339,2]
[337043650,1725377436090,-500.0,0.00014339,2]
[337043651,1725377436099,-500.0,0.00014339,2]
[337043652,1725377436109,-527.92944995,0.00014339,2]
[337043653,1725377436118,-500.0,0.00014339,2]
[337043654,1725377436126,-500.0,0.00014339,2]
[337043655,1725377436136,-500.0,0.00014339,2]
[337043656,1725377436145,-645.7916423,0.00014339,2]
[337043657,1725377436154,-500.0,0.00014339,2]
[337043658,1725377436163,-4771.3,0.00014339,2]
[337043659,1725377436172,-500.0,0.00014339,2]
[337043660,1725377436181,-500.0,0.00014339,2]
[337043661,1725377436190,-4959.45,0.00014339,2]
[337043662,1725377436199,-810.77,0.00014339,2]
[337043663,1725377436209,-5063.13,0.00014339,2]
[337043664,1725377436218,-2575.79,0.00014339,2]
[337043665,1725377436227,-1173.27,0.00014339,2]
[337043666,1725377436236,-500.0,0.00014339,2]
[337043667,1725377436246,-500.0,0.00014339,2]
[337043668,1725377436256,-488.0486747,0.00014339,2]
[337043669,1725377436265,-935.21,0.00014339,2]
[337043670,1725377436274,-1681.12,0.00014339,2]
[337043671,1725377436283,-500.0,0.00014339,2]
[337043672,1725377436293,-4959.98,0.00014339,2]
[337043673,1725377436302,-500.0,0.00014339,2]
[337043674,1725377436311,-500.0,0.00014339,2]
[337043675,1725377436320,-500.0,0.00014339,2]
[337043676,1725377436329,-500.0,0.00014339,2]
[337043677,1725377436338,-2962.81,0.00014339,2]
[337043678,1725377436348,-500.0,0.00014339,2]
[337043679,1725377436357,-317.70376858,0.00014339,2]
[337043680,1725377436366,-511.38806538,0.00014339,2]
[337043681,1725377436376,-500.0,0.00014339,2]
[337043682,1725377436386,-500.0,0.00014339,2]
[337043683,1725377436396,-500.0,0.00014339,2]
[337043684,1725377436409,-500.0,0.00014339,2]
[337043685,1725377436430,-500.0,0.00014339,2]
[337043686,1725377436448,-584.88053733,0.00014339,2]
[337043687,1725377436467,-500.0,0.00014339,2]
[337043688,1725377436489,-500.0,0.00014339,2]
[337043689,1725377436509,-500.0,0.00014339,2]
[337043690,1725377436529,-1015.8,0.00014339,2]
[337043691,1725377436545,-500.0,0.00014339,2]
[337043692,1725377436561,-3065.17,0.00014339,2]
[337043693,1725377436579,-500.0,0.00014339,2]
[337043694,1725377436600,-439.21563108,0.00014339,2]
[337043695,1725377436614,-500.0,0.00014339,2]
[337043696,1725377436633,-911.11,0.00014339,2]
[337043697,1725377436650,-500.0,0.00014339,2]
[337043698,1725377436667,-566.09754939,0.00014339,2]
[337043699,1725377436680,-500.0,0.00014339,2]
[337043700,1725377436696,-500.0,0.00014339,2]
[337043701,1725377436712,-500.0,0.00014339,2]
[337043702,1725377436728,-317.23411328,0.00014339,2]
[337043703,1725377436743,-617.1,0.00014339,2]
[337043704,1725377436761,-626.67,0.00014339,2]
[337043705,1725377436776,-150.0,0.00014339,2]
[337043706,1725377436792,-2956.84,0.00014339,2]
[337043707,1725377436807,-792.51,0.00014339,2]
[337043708,1725377436821,-500.0,0.00014339,2]
[337043709,1725377436836,-500.0,0.00014339,2]
[337043710,1725377436852,-500.0,0.00014339,2]
[337043711,1725377436866,-4312.37,0.00014339,2]
[337043712,1725377436883,-500.0,0.00014339,2]
[337043713,1725377436900,-500.0,0.00014339,2]
[337043714,1725377436915,-500.0,0.00014339,2]
[337043715,1725377436929,-500.0,0.00014339,2]
[337043716,1725377436944,-3767.67,0.00014339,2]
[337043717,1725377436959,-500.0,0.00014339,2]
[337043718,1725377436974,-500.0,0.00014339,2]
[337043719,1725377436989,-2823.26,0.00014339,2]
[337043720,1725377437003,-500.0,0.00014339,2]
[337043721,1725377437019,-398.236284,0.00014339,2]
[337043722,1725377437036,-500.0,0.00014339,2]
[337043723,1725377437050,-398.236284,0.00014339,2]
[337043724,1725377437065,-500.0,0.00014339,2]
[337043725,1725377437079,-651.48,0.00014339,2]
[337043726,1725377437095,-2941.27,0.00014339,2]
[337043727,1725377437110,-500.0,0.00014339,2]
[337043728,1725377437125,-5291.28,0.00014339,2]
[337043729,1725377437140,-2372.47,0.00014339,2]
[337043730,1725377437156,-500.0,0.00014339,2]
[337043731,1725377437171,-500.0,0.00014339,2]
[337043732,1725377437187,-151.0,0.00014339,2]
[337043733,1725377437202,-500.0,0.00014339,2]
[337043734,1725377437216,-151.0,0.00014339,2]
[337043735,1725377437232,-500.0,0.00014339,2]
[337043736,1725377437248,-500.0,0.00014339,2]
[337043737,1725377437264,-151.0,0.00014339,2]
[337043738,1725377437280,-6509.56,0.00014339,2]
[337043739,1725377437295,-500.0,0.00014339,2]
[337043740,1725377437310,-921.76,0.00014339,2]
[337043741,1725377437325,-151.0,0.00014339,2]
[337043742,1725377437340,-8054.85,0.00014339,2]
[337043743,1725377437357,-3556.69,0.00014339,2]
[337043744,1725377437371,-185.813132,0.00014339,2]
[337043745,1725377437387,-185.813132,0.00014339,2]
[337043746,1725377437402,-504.57156488,0.00014339,2]
[337043747,1725377437417,-6080.47,0.00014339,2]
[337043748,1725377437434,-727.05,0.00014339,2]
[337043749,1725377437450,-1823.72,0.00014339,2]
[337043750,1725377437467,-500.0,0.00014339,2]
[337043751,1725377437482,-2355.36,0.00014339,2]
[337043752,1725377437496,-500.0,0.00014339,2]
[337043753,1725377437511,-151.0,0.00014339,2]
[337043754,1725377437528,-500.0,0.00014339,2]
[337043755,1725377437543,-13523.87,0.00014339,2]
[337043756,1725377437558,-500.0,0.00014339,2]
[337043757,1725377437575,-500.0,0.00014339,2]
[337043758,1725377437586,-5419.08,0.00014339,2]
[337043759,1725377437595,-4701.85,0.00014339,2]
[337043760,1725377437606,-12316.8,0.00014339,2]
[337043761,1725377437615,-2252.4,0.00014339,2]
[337043762,1725377437624,-151.0,0.00014339,2]
[337043763,1725377437633,-151.0,0.00014339,2]
[337043766,1725377437866,-500.0,0.00014339,2]
[337043767,1725377437895,-9352.27,0.00014339,2]
[337043768,1725377437905,-500.0,0.00014339,2]
[337043769,1725377437915,-18186.58,0.00014339,2]
[337043770,1725377437925,-151.0,0.00014339,2]
[337043771,1725377437935,-151.0,0.00014339,2]
[337043772,1725377437945,-620.53,0.00014339,2]
[337043773,1725377437956,-1037.93,0.00014339,2]
[337043774,1725377437965,-151.0,0.00014339,2]
[337043775,1725377437974,-151.0,0.00014339,2]
[337043776,1725377437986,-500.0,0.00014339,2]
[337043777,1725377437996,-21464.94,0.00014339,2]
[337043778,1725377438006,-869.64,0.00014339,2]
[337043779,1725377438014,-336.04917,0.00014339,2]
[337043780,1725377438024,-764.776244,0.00014339,2]
[337043781,1725377438034,-764.776244,0.00014339,2]
[337043782,1725377438043,-4265.96,0.00014339,2]
[337043783,1725377438054,-15934.27,0.00014339,2]
[337043784,1725377438063,-4163.35,0.00014339,2]
[337043785,1725377438072,-500.0,0.00014339,2]
[337043786,1725377438081,-346.85,0.00014339,2]
[337043787,1725377438091,-346.85,0.00014339,2]
[337043788,1725377438101,-764.776244,0.00014339,2]
[337043789,1725377438110,-764.776244,0.00014339,2]
[337043790,1725377438121,-151.0,0.00014339,2]
[337043791,1725377438130,-346.85,0.00014339,2]
[337043792,1725377438140,-151.0,0.00014339,2]
[337043793,1725377438151,-346.85,0.00014339,2]
[337043794,1725377438160,-5712.89,0.00014339,2]
[337043795,1725377438169,-1000.45,0.00014339,2]
[337043796,1725377438178,-5156.32,0.00014339,2]
[337043797,1725377438187,-866.07,0.00014339,2]
[337043798,1725377438197,-20278.78,0.00014339,2]
[337043799,1725377438206,-2313.19,0.00014339,2]
[337043800,1725377438216,-2567.96,0.00014339,2]
[337043801,1725377438225,-12504.9,0.00014339,2]
[337043802,1725377438234,-531.14077404,0.00014339,2]
[337043803,1725377438244,-609.6356171,0.00014339,2]
[337043804,1725377438253,-500.0,0.00014339,2]
[337043805,1725377438263,-3011.325,0.00014339,2]
[337043806,1725377438271,-500.0,0.00014339,2]
[337043807,1725377438281,-20594.47,0.00014339,2]
[337043808,1725377438290,-3011.325,0.00014339,2]
[337043809,1725377438299,-3011.325,0.00014339,2]
[337043810,1725377438309,-3011.325,0.00014339,2]
[337043811,1725377438318,-22405.79,0.00014339,2]
[337043812,1725377438327,-500.0,0.00014339,2]
[337043813,1725377438337,-2469.17,0.00014339,2]
[337043814,1725377438346,-500.0,0.00014339,2]
[337043815,1725377438357,-4827.55,0.00014339,2]
[337043816,1725377438366,-500.0,0.00014339,2]
[337043817,1725377438377,-7528.51,0.00014339,2]
[337043818,1725377438387,-500.0,0.00014339,2]
[337043819,1725377438398,-2310.49,0.00014339,2]
[337043820,1725377438407,-500.0,0.00014339,2]
[337043821,1725377438416,-1929.02,0.00014339,2]
[337043822,1725377438426,-151.0,0.00014339,2]
[337043823,1725377438435,-151.0,0.00014339,2]
[337043824,1725377438444,-151.0,0.00014339,2]
[337043825,1725377438453,-20031.7,0.00014339,2]
[337043826,1725377438463,-154.880964,0.00014339,2]
[337043827,1725377438472,-1026.42,0.00014339,2]
[337043828,1725377438481,-9807.64,0.00014339,2]
[337043829,1725377438491,-980.35,0.00014339,2]
[337043830,1725377438500,-4358.91,0.00014339,2]
[337043831,1725377438509,-3684.77,0.00014339,2]
[337043832,1725377438520,-500.0,0.00014339,2]
[337043833,1725377438531,-5972.92,0.00014339,2]
[337043834,1725377438541,-14377.82,0.00014339,2]
[337043835,1725377438551,-873.57,0.00014339,2]
[337043836,1725377438560,-267.551276,0.00014339,2]
[337043837,1725377438570,-267.551276,0.00014339,2]
[337043838,1725377438581,-267.551276,0.00014339,2]
[337043839,1725377438590,-502.41661545,0.00014339,2]